fUSD/lending_fUSD_20250521
["ID","MTS","AMOUNT","RATE_DAILY","PERIOD"]
[361784950,1747785604487,499.85,0.00027397,120]
[361784952,1747785719158,-339.84258216,0.00011748,2]
[361784953,1747785719203,-1537.85152534,0.00011758,2]
[361784954,1747785719226,-467.643968,0.00011758,2]
[361784955,1747785719247,-324.744625,0.0001176,2]
[361784956,1747785719269,-164.72,0.00011782,2]
[361784957,1747785719291,-190.4,0.00011782,2]
[361784958,1747785719313,-2373.55,0.00011807,2]
[361784959,1747785719336,-300.0,0.00011898,2]
[361784960,1747785719361,-1200.0,0.00011899,2]
[361784961,1747785719383,-150.0,0.00011899,2]
[361784962,1747785719405,-2951.2472995,0.000119,2]
[361784963,1747785721142,-1681.60328615,0.000119,2]
[361784964,1747785721166,-575.44347987,0.000119,2]
[361784965,1747785721192,-7742.95323398,0.000119,2]
[361784966,1747785722279,-6551.62194651,0.000119,2]
[361784967,1747785722304,-150.0,0.00011966,2]
[361784968,1747785722327,-150.0,0.00011982,2]
[361784969,1747785722350,-150.0,0.00011985,2]
[361784970,1747785722374,-150.0,0.00011985,2]
[361784971,1747785722396,-2725.9925472,0.00011991,2]
[361784972,1747785722418,-122.38550629,0.00011991,2]
[361784973,1747785722955,-300.0,0.00011899,2]
[361784974,1747785722977,-9700.0,0.00011991,2]
[361784975,1747785723429,-10000.0,0.00011991,2]
[361784976,1747785723712,-3416.50244891,0.00011991,2]
[361784977,1747785723734,-440.9725912,0.00011991,2]
[361784978,1747785723756,-576.2205103,0.00011991,2]
[361784979,1747785723778,-5566.30444959,0.00011991,2]
[361784980,1747785724103,-10000.0,0.00011991,2]
[361784981,1747785724338,-10000.0,0.00011991,2]
[361784982,1747785725099,-10000.0,0.00011991,2]
[361784983,1747785725244,-3424.36728481,0.00011991,2]
[361784984,1747785725266,-1650.7426713,0.00011991,2]
[361784985,1747785725290,-150.0,0.00011992,2]
[361784986,1747785725314,-150.0,0.00011994,2]
[361784987,1747785725337,-150.0,0.00011994,2]
[361784988,1747785725360,-150.0,0.00011995,2]
[361784989,1747785725388,-509.85096711,0.00011999,2]
[361784990,1747785725412,-3815.03907678,0.00012,2]
[361784991,1747785725755,-10000.0,0.00012,2]
[361784992,1747785726469,-10000.0,0.00012,2]
[361784993,1747785726690,-10000.0,0.00012,2]
[361784994,1747785726989,-10000.0,0.00012,2]
[361784995,1747785727456,-10000.0,0.00012,2]
[361784996,1747785727523,-10000.0,0.00012,2]
[361784997,1747785727985,-10000.0,0.00012,2]
[361784998,1747785728659,-10000.0,0.00012,2]
[361784999,1747785728755,-10000.0,0.00012,2]
[361785000,1747785729017,-10000.0,0.00012,2]
[361785001,1747785729729,-10000.0,0.00012,2]
[361785002,1747785729962,-10000.0,0.00012,2]
[361785003,1747785730422,-10000.0,0.00012,2]
[361785004,1747785730760,-10000.0,0.00012,2]
[361785005,1747785731130,-10000.0,0.00012,2]
[361785006,1747785732035,-10000.0,0.00012,2]
[361785007,1747785732859,-730.32392254,0.00012,2]
[361785008,1747785732881,-9269.67607746,0.00012,2]
[361785009,1747785733204,-10000.0,0.00012,2]
[361785010,1747785733549,-10000.0,0.00012,2]
[361785011,1747785734638,-10000.0,0.00012,2]
[361785012,1747785734905,-10000.0,0.00012,2]
[361785013,1747785735083,-10000.0,0.00012,2]
[361785014,1747785735417,-10000.0,0.00012,2]
[361785015,1747785735850,-500.0,0.00011999,2]
[361785016,1747785735874,-432.497674,0.00011999,2]
[361785017,1747785735896,-303.0345973,0.00011999,2]
[361785018,1747785735923,-500.0,0.00011999,2]
[361785019,1747785735949,-500.0,0.00011999,2]
[361785020,1747785735978,-500.0,0.00011999,2]
[361785021,1747785736008,-627.3292902,0.00011999,2]
[361785022,1747785736036,-500.0,0.00011999,2]
[361785023,1747785736064,-500.0,0.00011999,2]
[361785024,1747785736092,-500.0,0.00011999,2]
[361785025,1747785736115,-5137.1384385,0.00012,2]
[361785026,1747785736861,-500.0,0.00011999,2]
[361785027,1747785736889,-500.0,0.00011999,2]
[361785028,1747785736917,-500.0,0.00011999,2]
[361785029,1747785736939,-8500.0,0.00012,2]
[361785030,1747785739152,-10000.0,0.00012,2]
[361785031,1747785739712,-1844.40105131,0.00012,2]
[361785032,1747785739734,-151.0,0.00012,2]
[361785033,1747785739756,-151.0,0.00012,2]
[361785034,1747785739778,-171.041278,0.00012,2]
[361785035,1747785739800,-171.041278,0.00012,2]
[361785036,1747785739822,-171.041278,0.00012,2]
[361785037,1747785739843,-171.041278,0.00012,2]
[361785038,1747785739863,-171.041278,0.00012,2]
[361785039,1747785739885,-171.041278,0.00012,2]
[361785040,1747785739906,-151.0,0.00012,2]
[361785041,1747785739926,-151.0,0.00012,2]
[361785042,1747785739947,-151.0,0.00012,2]
[361785043,1747785739968,-151.0,0.00012,2]
[361785044,1747785739990,-151.0,0.00012,2]
[361785045,1747785740013,-170.85953,0.00012,2]
[361785046,1747785740034,-177.183807,0.00012,2]
[361785047,1747785740054,-177.183807,0.00012,2]
[361785048,1747785740076,-151.0,0.00012,2]
[361785049,1747785740100,-151.0,0.00012,2]
[361785050,1747785740122,-151.0,0.00012,2]
[361785051,1747785740146,-151.0,0.00012,2]
[361785052,1747785740169,-197.784914,0.00012,2]
[361785053,1747785740190,-151.0,0.00012,2]
[361785054,1747785740212,-151.0,0.00012,2]
[361785055,1747785740236,-151.0,0.00012,2]
[361785056,1747785740261,-151.911704,0.00012,2]
[361785057,1747785740285,-151.0,0.00012,2]
[361785058,1747785740575,-320.427893,0.00012,2]
[361785059,1747785740701,-320.427893,0.00012,2]
[361785060,1747785740724,-409.539964,0.00012,2]
[361785061,1747785740749,-409.539964,0.00012,2]
[361785062,1747785740771,-151.0,0.00012,2]
[361785063,1747785740792,-151.0,0.00012,2]
[361785064,1747785740814,-151.0,0.00012,2]
[361785065,1747785740836,-151.0,0.00012,2]
[361785066,1747785740858,-223.963977,0.00012,2]
[361785067,1747785740880,-151.0,0.00012,2]
[361785068,1747785740904,-1292.735146,0.00012,2]
[361785069,1747785740927,-151.0,0.00012,2]
[361785070,1747785740952,-106.79268169,0.00012,2]
[361785071,1747785742288,-1185.94246431,0.00012,2]
[361785072,1747785742310,-223.963977,0.00012,2]
[361785073,1747785742330,-151.0,0.00012,2]
[361785074,1747785742351,-151.0,0.00012,2]
[361785075,1747785742371,-151.0,0.00012,2]
[361785076,1747785742391,-252.81243,0.00012,2]
[361785077,1747785742413,-252.81243,0.00012,2]
[361785078,1747785742433,-151.0,0.00012,2]
[361785079,1747785742455,-182.107339,0.00012,2]
[361785080,1747785742476,-151.0,0.00012,2]
[361785081,1747785742499,-151.0,0.00012,2]
[361785082,1747785742522,-151.0,0.00012,2]
[361785083,1747785742545,-309.626481,0.00012,2]
[361785084,1747785742570,-309.626481,0.00012,2]
[361785085,1747785742592,-151.0,0.00012,2]
[361785086,1747785742614,-151.273147,0.00012,2]
[361785087,1747785742635,-151.0,0.00012,2]
[361785088,1747785742658,-622.253069,0.00012,2]
[361785089,1747785742681,-622.253069,0.00012,2]
[361785090,1747785742702,-151.0,0.00012,2]
[361785091,1747785742724,-151.0,0.00012,2]
[361785092,1747785742748,-151.0,0.00012,2]
[361785093,1747785742771,-181.877,0.00012,2]
[361785094,1747785742793,-618.122297,0.00012,2]
[361785095,1747785742816,-181.877,0.00012,2]
[361785096,1747785742838,-151.0,0.00012,2]
[361785097,1747785742860,-618.122297,0.00012,2]
[361785098,1747785742883,-151.0,0.00012,2]
[361785099,1747785742907,-1066.025282,0.00012,2]
[361785100,1747785742929,-151.0,0.00012,2]
[361785101,1747785742951,-151.0,0.00012,2]
[361785102,1747785742972,-151.0,0.00012,2]
[361785103,1747785742992,-151.0,0.00012,2]
[361785104,1747785743016,-151.0,0.00012,2]
[361785105,1747785743037,-352.30523669,0.00012,2]
[361785107,1747785783214,-150.0,0.00011999,2]
[361785108,1747785783241,-63.23430631,0.00012,2]
[361785109,1747785783264,-151.0,0.00012,2]
[361785110,1747785783288,-415.539543,0.00012,2]
[361785111,1747785783311,-151.0,0.00012,2]
[361785112,1747785783334,-151.0,0.00012,2]
[361785113,1747785783357,-151.0,0.00012,2]
[361785114,1747785783379,-151.0,0.00012,2]
[361785115,1747785783401,-342.967213,0.00012,2]
[361785116,1747785783424,-342.967213,0.00012,2]
[361785117,1747785783447,-151.0,0.00012,2]
[361785118,1747785783472,-228.396671,0.00012,2]
[361785119,1747785783496,-228.396671,0.00012,2]
[361785120,1747785783519,-153.582745,0.00012,2]
[361785121,1747785783549,-151.0,0.00012,2]
[361785122,1747785783577,-150.0,0.00012,2]
[361785123,1747785783604,-151.0,0.00012,2]
[361785124,1747785783630,-151.0,0.00012,2]
[361785125,1747785783654,-156.157729,0.00012,2]
[361785126,1747785783681,-156.157729,0.00012,2]
[361785127,1747785783706,-175.699588,0.00012,2]
[361785128,1747785783730,-175.699588,0.00012,2]
[361785129,1747785783756,-200.0,0.00012,2]
[361785130,1747785783784,-150.0,0.00012001,2]
[361785131,1747785783810,-150.0,0.00012009,2]
[361785132,1747785783835,-150.0,0.00012014,2]
[361785133,1747785783860,-150.0,0.0001203,2]
[361785134,1747785783886,-150.0,0.00012039,2]
[361785135,1747785783910,-150.0,0.0001205,2]
[361785136,1747785783934,-150.0,0.00012054,2]
[361785137,1747785783959,-150.0,0.00012054,2]
[361785138,1747785783981,-4502.20100369,0.00012055,2]
[361785139,1747785785124,-10000.0,0.00012055,2]
[361785140,1747785787601,-10000.0,0.00012055,2]
[361785141,1747785788812,-10000.0,0.00012055,2]
[361785142,1747785789264,-5392.57899631,0.00012055,2]
[361785143,1747785789288,-231.480098,0.00012055,2]
[361785144,1747785789310,-179.449212,0.00012055,2]
[361785145,1747785789332,-151.0,0.00012055,2]
[361785146,1747785789354,-151.0,0.00012055,2]
[361785147,1747785789376,-214.371791,0.00012055,2]
[361785148,1747785789400,-151.0,0.00012055,2]
[361785149,1747785789425,-151.0,0.00012055,2]
[361785150,1747785789450,-151.0,0.00012055,2]
[361785151,1747785789472,-151.0,0.00012055,2]
[361785152,1747785789494,-152.721747,0.00012055,2]
[361785153,1747785789516,-151.0,0.00012055,2]
[361785154,1747785789540,-151.0,0.00012055,2]
[361785155,1747785789563,-171.041278,0.00012055,2]
[361785156,1747785789588,-171.041278,0.00012055,2]
[361785157,1747785789611,-249.90776,0.00012055,2]
[361785158,1747785789635,-177.183807,0.00012055,2]
[361785159,1747785789659,-177.183807,0.00012055,2]
[361785160,1747785789682,-151.0,0.00012055,2]
[361785161,1747785789706,-300.0,0.00012059,2]
[361785162,1747785789731,-150.0,0.00012062,2]
[361785163,1747785789758,-150.0,0.00012068,2]
[361785164,1747785789784,-150.0,0.0001208,2]
[361785165,1747785789808,-150.0,0.00012082,2]
[361785166,1747785789836,-150.0,0.00012091,2]
[361785167,1747785789861,-150.0,0.00012094,2]
[361785168,1747785789885,-150.0,0.00012095,2]
[361785169,1747785789910,-150.0,0.00012099,2]
[361785170,1747785789935,-24.04022569,0.000121,2]
[361785195,1747785867077,-292.270162,0.00011858,2]
[361785196,1747785867104,-2641.1996262,0.00012091,2]
[361785197,1747785867128,-7066.5302118,0.00012091,2]
[361785198,1747785867959,-10000.0,0.00012091,2]
[361785199,1747785868768,-10000.0,0.00012091,2]
[361785200,1747785869666,-10000.0,0.00012091,2]
[361785201,1747785884449,-157.54,0.00011268,2]
[361785203,1747785921390,1526.78,0.00027397,120]
[361785204,1747785922996,828.0,9.658e-05,2]
[361785205,1747785938899,-50.46,0.00011268,2]
[361785206,1747785938922,-263.043146,0.00011858,2]
[361785207,1747785938945,-828.0,0.00011922,2]
[361785208,1747785938968,-4012.3858238,0.00012091,2]
[361785209,1747785938992,-537.9678871,0.00012092,2]
[361785210,1747785939016,-4308.1431431,0.00012092,2]
[361785211,1747785939704,-10000.0,0.00012092,2]
[361785212,1747785941018,-10000.0,0.00012092,2]
[361785213,1747785963750,499.99,0.00027397,120]
[361785215,1747786049140,-14862.21,0.00011782,2]
[361785216,1747786049162,-236.738832,0.00011858,2]
[361785217,1747786049184,-3363.4699912,0.00012092,2]
[361785218,1747786049208,-125.95977431,0.000121,2]
[361785219,1747786049230,-186.24720714,0.000121,2]
[361785220,1747786049255,-500.0,0.0001211,2]
[361785221,1747786049277,-767.0,0.0001211,2]
[361785222,1747786049299,-165.46,0.00012136,2]
[361785223,1747786049322,-165.67,0.00012146,2]
[361785224,1747786049345,-165.67,0.00012156,2]
[361785225,1747786049369,-165.67,0.00012166,2]
[361785226,1747786049390,-165.67,0.00012176,2]
[361785227,1747786049413,-165.67,0.00012187,2]
[361785228,1747786049441,-474.25802411,0.00012191,2]
[361785229,1747786049465,-165.67,0.00012197,2]
[361785231,1747786049490,-165.67,0.00012207,2]
[361785232,1747786049516,-1188.0,0.0001225,2]
[361785233,1747786049539,-821.02134133,0.0001225,2]
[361785234,1747786049561,-166.72,0.00012267,2]
[361785235,1747786049585,-884.0,0.00012299,2]
[361785236,1747786049607,-440.01791486,0.00012337,2]
[361785237,1747786049633,-150.0,0.0001234,2]
[361785238,1747786049657,-150.0,0.00012358,2]
[361785239,1747786049685,-150.0,0.00012367,2]
[361785240,1747786049710,-300.0,0.00012383,2]
[361785241,1747786049735,-150.0,0.00012395,2]
[361785242,1747786049762,-150.0,0.00012403,2]
[361785243,1747786049787,-150.0,0.00012418,2]
[361785244,1747786049811,-150.0,0.00012426,2]
[361785245,1747786049837,-300.0,0.00012433,2]
[361785246,1747786049861,-150.0,0.00012434,2]
[361785247,1747786049885,-150.0,0.00012454,2]
[361785248,1747786049910,-191.22,0.00012477,2]
[361785249,1747786049938,-150.0,0.00012479,2]
[361785250,1747786049963,-300.0,0.00012501,2]
[361785251,1747786049993,-150.0,0.00012518,2]
[361785252,1747786050018,-150.0,0.00012538,2]
[361785253,1747786050046,-150.0,0.0001254,2]
[361785254,1747786050069,-1000.0,0.00012544,2]
[361785255,1747786050095,-150.0,0.00012548,2]
[361785256,1747786050120,-1000.0,0.00012548,2]
[361785257,1747786050145,-150.0,0.00012561,2]
[361785258,1747786050169,-150.0,0.00012565,2]
[361785259,1747786050191,-150.0,0.0001258,2]
[361785260,1747786050215,-300.0,0.00012586,2]
[361785261,1747786050239,-150.0,0.00012639,2]
[361785262,1747786050264,-95.28387296,0.00012834,2]
[361785278,1747786231878,-1000.0,0.00011782,2]
[361785280,1747786231888,-2.06975591,0.00012,2]
[361785283,1747786231900,-253.53371294,0.00012,2]
[361785285,1747786231914,-293.55458939,0.00012,2]
[361785299,1747786231981,-4968.79149076,0.00012,2]
[361785301,1747786231992,-213.064948,0.00012577,2]
[361785303,1747786232002,-1200.0,0.00012824,2]
[361785305,1747786232012,-2077.5254807,0.00012825,2]
[361785307,1747786232022,-1932.66650104,0.00012825,2]
[361785353,1747786232445,-1217.10766856,0.00012825,2]
[361785355,1747786232455,-1761.7930127,0.00012825,2]
[361785357,1747786232465,-20369.3374193,0.00012825,2]
[361785359,1747786232475,-154.71612704,0.00012834,2]
[361785361,1747786232485,-250.0,0.00012834,2]
[361785363,1747786232495,-1000.0,0.00012851,2]
[361785366,1747786232505,-2065.01,0.00012945,2]
[361785368,1747786232516,-151.0,0.000131,2]
[361785370,1747786232527,-151.0,0.000131,2]
[361785372,1747786232537,-151.0,0.000131,2]
[361785374,1747786232546,-151.0,0.000131,2]
[361785376,1747786232556,-151.0,0.000131,2]
[361785378,1747786232566,-151.0,0.000131,2]
[361785380,1747786232576,-151.0,0.000131,2]
[361785382,1747786232585,-151.15241,0.000131,2]
[361785384,1747786232595,-151.0,0.000131,2]
[361785386,1747786232605,-151.0,0.000131,2]
[361785388,1747786232616,-152.152125,0.000131,2]
[361785390,1747786232626,-151.0,0.000131,2]
[361785392,1747786232636,-151.0,0.000131,2]
[361785394,1747786232646,-151.0,0.000131,2]
[361785396,1747786232659,-151.0,0.000131,2]
[361785398,1747786232668,-151.0,0.000131,2]
[361785401,1747786232679,-151.0,0.000131,2]
[361785403,1747786232689,-154.306515,0.000131,2]
[361785405,1747786232699,-151.0,0.000131,2]
[361785407,1747786232709,-151.0,0.000131,2]
[361785409,1747786232719,-151.0,0.000131,2]
[361785411,1747786232729,-296.737575,0.000131,2]
[361785413,1747786232743,-320.427893,0.000131,2]
[361785415,1747786232753,-320.427893,0.000131,2]
[361785417,1747786232763,-409.539964,0.000131,2]
[361785419,1747786232774,-409.539964,0.000131,2]
[361785421,1747786232786,-151.0,0.000131,2]
[361785423,1747786232796,-151.0,0.000131,2]
[361785425,1747786232806,-151.0,0.000131,2]
[361785427,1747786232817,-151.0,0.000131,2]
[361785429,1747786232827,-151.0,0.000131,2]
[361785431,1747786232838,-151.321104,0.000131,2]
[361785433,1747786232848,-151.0,0.000131,2]
[361785435,1747786232858,-252.81243,0.000131,2]
[361785437,1747786232869,-252.81243,0.000131,2]
[361785440,1747786232879,-415.539543,0.000131,2]
[361785442,1747786232890,-415.539543,0.000131,2]
[361785444,1747786232900,-151.0,0.000131,2]
[361785446,1747786232911,-243.977181,0.000131,2]
[361785448,1747786232921,-228.396671,0.000131,2]
[361785450,1747786232931,-228.396671,0.000131,2]
[361785452,1747786232941,-151.0,0.000131,2]
[361785453,1747786232953,-151.0,0.000131,2]
[361785454,1747786232963,-151.0,0.000131,2]
[361785455,1747786232974,-951.44,0.00013142,2]
[361785456,1747786232984,-1997.2,0.00013142,2]
[361785457,1747786232994,-1000.0,0.00013255,2]
[361785458,1747786233004,-151.0,0.0001327,2]
[361785459,1747786233015,-151.0,0.0001327,2]
[361785460,1747786233025,-153.215833,0.0001327,2]
[361785461,1747786233036,-151.0,0.0001327,2]
[361785462,1747786233047,-151.0,0.0001327,2]
[361785463,1747786233057,-151.0,0.0001327,2]
[361785464,1747786233068,-151.0,0.0001327,2]
[361785465,1747786233079,-151.0,0.0001327,2]
[361785466,1747786233089,-151.0,0.0001327,2]
[361785467,1747786233100,-151.0,0.0001327,2]
[361785468,1747786233111,-151.0,0.0001327,2]
[361785469,1747786233121,-151.0,0.0001327,2]
[361785470,1747786233131,-151.0,0.0001327,2]
[361785471,1747786233142,-151.0,0.0001327,2]
[361785472,1747786233154,-151.0,0.0001327,2]
[361785473,1747786233164,-151.0,0.0001327,2]
[361785474,1747786233176,-151.0,0.0001327,2]
[361785475,1747786233187,-151.0,0.0001327,2]
[361785476,1747786233684,-151.0,0.0001327,2]
[361785477,1747786233696,-151.0,0.0001327,2]
[361785478,1747786233707,-151.0,0.0001327,2]
[361785479,1747786233718,-151.0,0.0001327,2]
[361785480,1747786233728,-151.0,0.0001327,2]
[361785481,1747786233741,-151.0,0.0001327,2]
[361785482,1747786233751,-151.0,0.0001327,2]
[361785483,1747786233762,-151.0,0.0001327,2]
[361785484,1747786233773,-151.0,0.0001327,2]
[361785485,1747786233784,-151.0,0.0001327,2]
[361785486,1747786233794,-151.0,0.0001327,2]
[361785487,1747786233804,-151.0,0.0001327,2]
[361785488,1747786233815,-151.0,0.0001327,2]
[361785489,1747786233826,-320.427893,0.0001327,2]
[361785490,1747786233836,-320.427893,0.0001327,2]
[361785491,1747786233847,-151.0,0.0001327,2]
[361785492,1747786233857,-151.0,0.0001327,2]
[361785493,1747786233867,-151.0,0.0001327,2]
[361785494,1747786233879,-251.541423,0.0001327,2]
[361785495,1747786233890,-151.0,0.0001327,2]
[361785496,1747786233901,-151.0,0.0001327,2]
[361785497,1747786233913,-151.0,0.0001327,2]
[361785498,1747786233924,-151.0,0.0001327,2]
[361785499,1747786233934,-151.0,0.0001327,2]
[361785500,1747786233944,-151.0,0.0001327,2]
[361785501,1747786233954,-181.877,0.0001327,2]
[361785502,1747786233964,-181.877,0.0001327,2]
[361785503,1747786233974,-151.0,0.0001327,2]
[361785504,1747786233984,-151.0,0.0001327,2]
[361785505,1747786233994,-151.0,0.0001327,2]
[361785506,1747786234005,-151.0,0.0001327,2]
[361785507,1747786234014,-151.0,0.0001327,2]
[361785508,1747786234025,-151.0,0.0001327,2]
[361785509,1747786234035,-151.0,0.0001327,2]
[361785510,1747786234044,-151.0,0.0001327,2]
[361785511,1747786234054,-151.0,0.0001327,2]
[361785512,1747786234064,-342.967213,0.0001327,2]
[361785513,1747786234075,-342.967213,0.0001327,2]
[361785514,1747786234085,-175.699588,0.0001327,2]
[361785515,1747786234095,-175.699588,0.0001327,2]
[361785516,1747786234105,-166.93,0.00013288,2]
[361785517,1747786234115,-151.0,0.00013368,2]
[361785518,1747786234125,-151.0,0.00013368,2]
[361785519,1747786234135,-151.0,0.00013368,2]
[361785520,1747786234145,-151.0,0.00013368,2]
[361785521,1747786234156,-151.0,0.00013368,2]
[361785522,1747786234166,-151.0,0.00013368,2]
[361785523,1747786234177,-409.539964,0.00013368,2]
[361785524,1747786234186,-409.539964,0.00013368,2]
[361785525,1747786234196,-184.375296,0.00013368,2]
[361785526,1747786234206,-151.0,0.00013368,2]
[361785527,1747786234216,-151.0,0.00013368,2]
[361785528,1747786234225,-151.0,0.00013368,2]
[361785529,1747786234235,-151.0,0.00013368,2]
[361785530,1747786234245,-252.81243,0.00013368,2]
[361785531,1747786234255,-252.81243,0.00013368,2]
[361785532,1747786234265,-151.0,0.00013368,2]
[361785533,1747786234275,-151.0,0.00013368,2]
[361785534,1747786234285,-151.0,0.00013368,2]
[361785535,1747786234294,-151.0,0.00013368,2]
[361785536,1747786234304,-151.0,0.00013368,2]
[361785537,1747786234314,-415.539543,0.00013368,2]
[361785538,1747786234324,-415.539543,0.00013368,2]
[361785539,1747786234333,-156.906183,0.00013368,2]
[361785540,1747786234344,-228.396671,0.00013368,2]
[361785541,1747786234354,-228.396671,0.00013368,2]
[361785542,1747786234364,-151.0,0.00013368,2]
[361785543,1747786234374,-151.0,0.00013368,2]
[361785544,1747786234384,-214.541068,0.00013368,2]
[361785545,1747786234394,-7506.357807,0.00013368,2]
[361785546,1747786234408,-333.97727723,0.00013368,2]
[361785547,1747786234533,-398.988414,0.00013368,2]
[361785548,1747786234545,-1140.00546,0.00013368,2]
[361785549,1747786234558,-879.5318963,0.00013368,2]
[361785550,1747786234644,-1479.2697946,0.00013368,2]
[361785551,1747786234658,-2565.21617433,0.00013368,2]
[361785561,1747786239611,-352.84710549,0.000131,2]
[361785562,1747786239738,-388.47780368,0.000131,2]
[361785563,1747786239753,-536.07563227,0.000131,2]
[361785564,1747786239763,-4924.30753855,0.00013368,2]
[361785565,1747786239772,-1617.7405,0.00013499,2]
[361785566,1747786239783,-500.0,0.00013573,2]
[361785567,1747786239792,-1000.0,0.00013589,2]
[361785568,1747786239802,-500.0,0.00013598,2]
[361785569,1747786239812,-500.0,0.00013598,2]
[361785570,1747786239823,-500.0,0.00013598,2]
[361785571,1747786239834,-500.0,0.00013598,2]
[361785572,1747786239845,-500.0,0.00013598,2]
[361785573,1747786239855,-500.0,0.00013598,2]
[361785574,1747786239864,-500.0,0.00013598,2]
[361785575,1747786239874,-213.59000568,0.00013598,2]
[361785576,1747786239884,-500.0,0.00013598,2]
[361785577,1747786239895,-500.0,0.00013598,2]
[361785578,1747786239906,-500.0,0.00013598,2]
[361785579,1747786239916,-500.0,0.00013598,2]
[361785580,1747786239926,-500.0,0.00013598,2]
[361785581,1747786239936,-500.0,0.00013598,2]
[361785582,1747786239948,-500.0,0.00013598,2]
[361785583,1747786239957,-500.0,0.00013598,2]
[361785584,1747786239966,-500.0,0.00013598,2]
[361785585,1747786239976,-500.0,0.00013598,2]
[361785586,1747786239985,-500.0,0.00013598,2]
[361785587,1747786239995,-500.0,0.00013598,2]
[361785588,1747786240004,-500.0,0.00013598,2]
[361785589,1747786240014,-500.0,0.00013598,2]
[361785590,1747786240024,-500.0,0.00013598,2]
[361785591,1747786240033,-500.0,0.00013598,2]
[361785592,1747786240043,-500.0,0.00013598,2]
[361785593,1747786240053,-500.0,0.00013598,2]
[361785594,1747786240064,-500.0,0.00013598,2]
[361785595,1747786240074,-500.0,0.00013598,2]
[361785596,1747786240083,-500.0,0.00013598,2]
[361785597,1747786240094,-500.0,0.00013598,2]
[361785598,1747786240104,-500.0,0.00013598,2]
[361785599,1747786240114,-462.73292903,0.00013598,2]
[361785600,1747786240123,-500.0,0.00013598,2]
[361785601,1747786240134,-500.0,0.00013598,2]
[361785602,1747786240144,-216.45963612,0.00013598,2]
[361785603,1747786240155,-500.0,0.00013598,2]
[361785604,1747786240166,-33490.2605,0.00013599,2]
[361785605,1747786240175,-1000.0,0.00013599,2]
[361785606,1747786240186,-4258.26213663,0.00013599,2]
[361785607,1747786240197,-2657.60132711,0.00013599,2]
[361785608,1747786240211,-11772.31579346,0.00013599,2]
[361785609,1747786240227,-2511.293328,0.00013599,2]
[361785610,1747786240237,-277.46954007,0.00013599,2]
[361785612,1747786241886,-2571.75,0.00013599,2]
[361785613,1747786241898,-12254.91211644,0.00013599,2]
[361785655,1747786244729,-7352.7,0.00013599,2]
[361785661,1747786246670,-49320.52478276,0.00013599,2]
[361785662,1747786246772,-263.93882415,0.00013599,2]
[361785663,1747786246784,-698.62289349,0.00013599,2]
[361785664,1747786248209,-112963.74925789,0.00013599,2]
[361785665,1747786248218,-2500.0,0.00013599,2]
[361785666,1747786248228,-7398.25613367,0.00013599,2]